[Event "Early-Titled-Tuesday-Blitz-January-30-2024"]
[Site "Chess.com"]
[Date "2024.01.30"]
[Round "3"]
[White "ri4mi"]
[Black "js20000"]
[Result "1-0"]
[WhiteElo "2546"]
[BlackElo "2773"]
[TimeControl "180+1"]
[EndTime "8:29:55 PST"]
[Termination "ri4mi won by resignation"]

1. e4 {[%clk 0:03:00.9]} 1... c6 {[%clk 0:02:59.8]} 2. d4 {[%clk 0:03:00.4]}
2... d5 {[%clk 0:02:58.9]} 3. e5 {[%clk 0:03:01]} 3... Bf5 {[%clk 0:02:58.5]} 4.
Nf3 {[%clk 0:03:01.9]} 4... e6 {[%clk 0:02:57.4]} 5. Be2 {[%clk 0:03:02.8]} 5...
Bg4 {[%clk 0:02:57.2]} 6. O-O {[%clk 0:03:03.7]} 6... Bxf3 {[%clk 0:02:49.4]} 7.
Bxf3 {[%clk 0:03:04.6]} 7... Ne7 {[%clk 0:02:49.4]} 8. Be3 {[%clk 0:03:03.7]}
8... Nf5 {[%clk 0:02:49.5]} 9. Nd2 {[%clk 0:03:04]} 9... c5 {[%clk 0:02:43.2]}
10. c3 {[%clk 0:02:58.6]} 10... cxd4 {[%clk 0:02:42.1]} 11. Bxd4 {[%clk
0:02:57.4]} 11... Nc6 {[%clk 0:02:38.2]} 12. Nb3 {[%clk 0:02:56.8]} 12... Nfxd4
{[%clk 0:02:28.2]} 13. Nxd4 {[%clk 0:02:52.7]} 13... Nxe5 {[%clk 0:02:26.8]} 14.
Re1 {[%clk 0:02:51.3]} 14... Nxf3+ {[%clk 0:02:26.7]} 15. Qxf3 {[%clk
0:02:51.7]} 15... Be7 {[%clk 0:02:26.9]} 16. c4 {[%clk 0:02:44]} 16... dxc4
{[%clk 0:02:24.3]} 17. Qxb7 {[%clk 0:02:39.2]} 17... Qc8 {[%clk 0:02:18]} 18.
Qb5+ {[%clk 0:02:33.4]} 18... Qd7 {[%clk 0:02:17.4]} 19. Rac1 {[%clk 0:02:05.6]}
19... Qxb5 {[%clk 0:02:11.8]} 20. Nxb5 {[%clk 0:02:06.5]} 20... Rb8 {[%clk
0:02:09.1]} 21. Nxa7 {[%clk 0:01:57.3]} 21... Bc5 {[%clk 0:01:58.9]} 22. Nc6
{[%clk 0:01:46.5]} 22... Rxb2 {[%clk 0:01:57.8]} 23. Rf1 {[%clk 0:01:25.3]}
23... O-O {[%clk 0:01:28.2]} 24. Rxc4 {[%clk 0:01:24.6]} 24... Bb6 {[%clk
0:01:26.7]} 25. a4 {[%clk 0:01:21.6]} 25... Ra2 {[%clk 0:01:21.8]} 26. g3 {[%clk
0:01:18.9]} 26... Ra8 {[%clk 0:01:18.6]} 27. Kg2 {[%clk 0:01:12.3]} 27... R2xa4
{[%clk 0:01:17.2]} 28. Rxa4 {[%clk 0:01:12.3]} 28... Rxa4 {[%clk 0:01:15.6]} 29.
Rb1 {[%clk 0:01:12.6]} 29... Bc7 {[%clk 0:01:12.2]} 30. Rb7 {[%clk 0:01:12.1]}
30... Bd6 {[%clk 0:01:08.1]} 31. Rd7 {[%clk 0:01:11.8]} 31... Bf8 {[%clk
0:01:04.4]} 32. Rd8 {[%clk 0:01:11.5]} 32... g6 {[%clk 0:01:01.4]} 33. Ne5
{[%clk 0:00:58.8]} 33... Kg7 {[%clk 0:00:31.8]} 34. Rd7 {[%clk 0:00:58.4]} 34...
Bc5 {[%clk 0:00:30.7]} 35. Rxf7+ {[%clk 0:00:54.2]} 35... Kg8 {[%clk 0:00:31.1]}
36. Rf3 {[%clk 0:00:48.9]} 36... Bd6 {[%clk 0:00:27.8]} 37. Nd7 {[%clk
0:00:45.6]} 37... Kg7 {[%clk 0:00:26.3]} 38. Nf6 {[%clk 0:00:44.2]} 38... g5
{[%clk 0:00:23.1]} 39. Ne8+ {[%clk 0:00:43.5]} 39... Kg6 {[%clk 0:00:22.1]} 40.
Nxd6 {[%clk 0:00:44.4]} 1-0

[Event "Early-Titled-Tuesday-Blitz-January-30-2024"]
[Site "Chess.com"]
[Date "2024.01.30"]
[Round "3"]
[White "Muslim_player_05"]
[Black "mertfelin"]
[Result "0-1"]
[WhiteElo "2494"]
[BlackElo "2268"]
[TimeControl "180+1"]
[EndTime "8:30:00 PST"]
[Termination "mertfelin won by resignation"]

1. d4 {[%clk 0:03:00.9]} 1... d5 {[%clk 0:03:00.2]} 2. c4 {[%clk 0:03:01.1]}
2... e6 {[%clk 0:03:00.7]} 3. Nc3 {[%clk 0:03:00.6]} 3... Nf6 {[%clk 0:03:01.1]}
4. cxd5 {[%clk 0:03:00.5]} 4... exd5 {[%clk 0:03:01.5]} 5. Bg5 {[%clk 0:03:01]}
5... c6 {[%clk 0:03:02.1]} 6. e3 {[%clk 0:03:01.2]} 6... h6 {[%clk 0:03:02.7]}
7. Bh4 {[%clk 0:03:00.8]} 7... Be7 {[%clk 0:03:02.7]} 8. Bd3 {[%clk 0:03:00.3]}
8... O-O {[%clk 0:03:03.2]} 9. Qc2 {[%clk 0:02:59.5]} 9... Re8 {[%clk
0:03:03.7]} 10. Nge2 {[%clk 0:02:58.6]} 10... a5 {[%clk 0:03:04.1]} 11. O-O
{[%clk 0:02:57.8]} 11... Na6 {[%clk 0:03:04.4]} 12. a3 {[%clk 0:02:57.8]} 12...
Nc7 {[%clk 0:03:05]} 13. f3 {[%clk 0:02:55.6]} 13... c5 {[%clk 0:03:05.5]} 14.
Rad1 {[%clk 0:02:42.4]} 14... c4 {[%clk 0:03:05.7]} 15. Bf5 {[%clk 0:02:42.3]}
15... b5 {[%clk 0:03:06.3]} 16. Bxc8 {[%clk 0:02:38.3]} 16... Qxc8 {[%clk
0:03:06.6]} 17. e4 {[%clk 0:02:22.5]} 17... Nxe4 {[%clk 0:03:06.7]} 18. fxe4
{[%clk 0:01:45.9]} 18... Bxh4 {[%clk 0:03:06.5]} 19. exd5 {[%clk 0:01:31.9]}
19... Qd7 {[%clk 0:03:05.6]} 20. Nf4 {[%clk 0:01:27.3]} 20... Bg5 {[%clk
0:03:03.2]} 21. Qf2 {[%clk 0:00:57.8]} 21... b4 {[%clk 0:02:50.3]} 22. Nce2
{[%clk 0:00:39.9]} 22... Re4 {[%clk 0:02:37.2]} 23. h4 {[%clk 0:00:30.9]} 23...
Bxf4 {[%clk 0:02:32.4]} 24. Nxf4 {[%clk 0:00:30.6]} 24... Nxd5 {[%clk
0:02:33.2]} 25. Nh5 {[%clk 0:00:20]} 25... Qg4 {[%clk 0:02:26.1]} 26. Qf5 {[%clk
0:00:18]} 26... Qxf5 {[%clk 0:02:15]} 27. Rxf5 {[%clk 0:00:18.9]} 27... Ne3
{[%clk 0:01:49.1]} 28. Re1 {[%clk 0:00:19]} 28... Nxf5 {[%clk 0:01:45.5]} 29.
Rxe4 {[%clk 0:00:19.2]} 29... bxa3 {[%clk 0:01:45.7]} 30. bxa3 {[%clk
0:00:19.1]} 30... c3 {[%clk 0:01:45.7]} 31. Nf4 {[%clk 0:00:10.1]} 31... c2
{[%clk 0:01:33.5]} 32. Nd3 {[%clk 0:00:09.4]} 32... Rb8 {[%clk 0:01:31.7]} 33.
Re5 {[%clk 0:00:05.4]} 33... Rb1+ {[%clk 0:01:29.6]} 34. Kf2 {[%clk 0:00:04.9]}
34... Nxd4 {[%clk 0:01:29.1]} 35. Rc5 {[%clk 0:00:05]} 35... Rd1 {[%clk
0:01:19.6]} 36. Ke3 {[%clk 0:00:05.2]} 36... Nf5+ {[%clk 0:01:16.4]} 37. Rxf5
{[%clk 0:00:04]} 37... Rxd3+ {[%clk 0:01:16.8]} 38. Kxd3 {[%clk 0:00:03.6]}
38... c1=Q {[%clk 0:01:17.5]} 39. Rxa5 {[%clk 0:00:04.2]} 39... Qf1+ {[%clk
0:01:15.5]} 40. Kd4 {[%clk 0:00:02.1]} 40... Qf4+ {[%clk 0:01:15.3]} 41. Kc3
{[%clk 0:00:02.1]} 41... Qxh4 {[%clk 0:01:12.4]} 42. Ra8+ {[%clk 0:00:02.2]}
42... Kh7 {[%clk 0:01:13]} 43. a4 {[%clk 0:00:03.1]} 43... Qe1+ {[%clk
0:01:12.4]} 44. Kb3 {[%clk 0:00:03.1]} 44... Qe2 {[%clk 0:01:12.4]} 45. Kb4
{[%clk 0:00:04]} 45... Qxg2 {[%clk 0:01:10.8]} 46. a5 {[%clk 0:00:04.1]} 46...
Qxa8 {[%clk 0:01:10.9]} 47. a6 {[%clk 0:00:05]} 47... Qxa6 {[%clk 0:01:11.3]}
0-1

[Event "Early-Titled-Tuesday-Blitz-January-30-2024"]
[Site "Chess.com"]
[Date "2024.01.30"]
[Round "3"]
[White "MatthewG-p4p"]
[Black "KarstenHansch"]
[Result "1-0"]
[WhiteElo "2863"]
[BlackElo "2542"]
[TimeControl "180+1"]
[EndTime "8:30:02 PST"]
[Termination "MatthewG-p4p won on time"]

1. f4 {[%clk 0:03:00.9]} 1... Nf6 {[%clk 0:02:59.1]} 2. Nf3 {[%clk 0:03:00.6]}
2... g6 {[%clk 0:02:59.5]} 3. g3 {[%clk 0:03:01.3]} 3... Bg7 {[%clk 0:03:00.1]}
4. Bg2 {[%clk 0:03:02.1]} 4... O-O {[%clk 0:03:00.8]} 5. O-O {[%clk 0:03:03]}
5... d5 {[%clk 0:03:01.1]} 6. d3 {[%clk 0:03:03.9]} 6... b6 {[%clk 0:03:00.1]}
7. a4 {[%clk 0:03:00.1]} 7... a5 {[%clk 0:02:57]} 8. Nc3 {[%clk 0:02:41.6]} 8...
Bb7 {[%clk 0:02:56.4]} 9. e4 {[%clk 0:02:30.3]} 9... dxe4 {[%clk 0:02:55.5]} 10.
Ng5 {[%clk 0:02:30.1]} 10... Nbd7 {[%clk 0:02:43.2]} 11. dxe4 {[%clk 0:02:29.6]}
11... Nc5 {[%clk 0:02:42.8]} 12. e5 {[%clk 0:02:07.3]} 12... Bxg2 {[%clk
0:02:17.6]} 13. Kxg2 {[%clk 0:02:02.3]} 13... Nfd7 {[%clk 0:02:05.4]} 14. Be3
{[%clk 0:01:57]} 14... e6 {[%clk 0:01:57.5]} 15. Qe2 {[%clk 0:01:51]} 15... Qe7
{[%clk 0:01:52.8]} 16. Rad1 {[%clk 0:01:48.6]} 16... Rad8 {[%clk 0:01:48.5]} 17.
Qc4 {[%clk 0:01:44.7]} 17... h6 {[%clk 0:00:48.8]} 18. Nf3 {[%clk 0:01:40.9]}
18... f6 {[%clk 0:00:44.3]} 19. exf6 {[%clk 0:01:36.6]} 19... Qxf6 {[%clk
0:00:44.3]} 20. Bd4 {[%clk 0:01:13.8]} 20... Qf5 {[%clk 0:00:44.3]} 21. Bxg7
{[%clk 0:01:11.7]} 21... Kxg7 {[%clk 0:00:45.2]} 22. Nd4 {[%clk 0:01:06.7]}
22... Qf7 {[%clk 0:00:35.5]} 23. Nc6 {[%clk 0:00:44.6]} 23... Rde8 {[%clk
0:00:35.6]} 24. Nb5 {[%clk 0:00:37.2]} 24... e5 {[%clk 0:00:17]} 25. Qxf7+
{[%clk 0:00:25.7]} 25... Rxf7 {[%clk 0:00:17.9]} 26. fxe5 {[%clk 0:00:26.3]}
26... Nxe5 {[%clk 0:00:18.5]} 27. Rfe1 {[%clk 0:00:16.4]} 1-0

[Event "Early-Titled-Tuesday-Blitz-January-30-2024"]
[Site "Chess.com"]
[Date "2024.01.30"]
[Round "3"]
[White "Arimin1329"]
[Black "BeardedNM"]
[Result "1-0"]
[WhiteElo "2418"]
[BlackElo "2197"]
[TimeControl "180+1"]
[EndTime "8:30:02 PST"]
[Termination "Arimin1329 won on time"]

1. Nf3 {[%clk 0:03:00.9]} 1... Nf6 {[%clk 0:03:00]} 2. b3 {[%clk 0:03:01.8]}
2... d5 {[%clk 0:02:59.4]} 3. Bb2 {[%clk 0:03:02.7]} 3... c5 {[%clk 0:02:59.6]}
4. g3 {[%clk 0:02:59]} 4... d4 {[%clk 0:02:55.8]} 5. Bg2 {[%clk 0:02:59.9]} 5...
Nc6 {[%clk 0:02:55.9]} 6. O-O {[%clk 0:03:00.2]} 6... e5 {[%clk 0:02:55.8]} 7.
e3 {[%clk 0:03:00.4]} 7... Be7 {[%clk 0:02:53.3]} 8. exd4 {[%clk 0:03:00.1]}
8... exd4 {[%clk 0:02:52.7]} 9. Re1 {[%clk 0:03:00.1]} 9... O-O {[%clk
0:02:51.7]} 10. c4 {[%clk 0:02:58.5]} 10... Re8 {[%clk 0:02:49.7]} 11. d3 {[%clk
0:02:58.5]} 11... h6 {[%clk 0:02:43.5]} 12. Ne5 {[%clk 0:02:54.7]} 12... Nxe5
{[%clk 0:02:34.9]} 13. Rxe5 {[%clk 0:02:55.6]} 13... Bd6 {[%clk 0:02:35.4]} 14.
Rxe8+ {[%clk 0:02:54.2]} 14... Qxe8 {[%clk 0:02:35.7]} 15. Nd2 {[%clk
0:02:55.1]} 15... Bf5 {[%clk 0:02:27]} 16. Nf3 {[%clk 0:02:53]} 16... Qd7 {[%clk
0:02:15.8]} 17. Qd2 {[%clk 0:02:51.3]} 17... Re8 {[%clk 0:02:03.1]} 18. a3
{[%clk 0:02:51.1]} 18... b6 {[%clk 0:02:01.2]} 19. b4 {[%clk 0:02:50.2]} 19...
Bh7 {[%clk 0:01:52.4]} 20. b5 {[%clk 0:02:40.7]} 20... Qf5 {[%clk 0:01:48.3]}
21. Ne1 {[%clk 0:02:39.3]} 21... Ng4 {[%clk 0:01:37.4]} 22. a4 {[%clk
0:02:31.2]} 22... Qh5 {[%clk 0:01:24.6]} 23. h3 {[%clk 0:02:28.4]} 23... Ne5
{[%clk 0:01:21.3]} 24. a5 {[%clk 0:02:23.8]} 24... Bf5 {[%clk 0:01:06.8]} 25. g4
{[%clk 0:02:20.3]} 25... Nxg4 {[%clk 0:01:03.3]} 26. hxg4 {[%clk 0:02:21.2]}
26... Qh2+ {[%clk 0:00:53.8]} 27. Kf1 {[%clk 0:02:21.2]} 27... Bxg4 {[%clk
0:00:52.3]} 28. f3 {[%clk 0:01:52.1]} 28... Bh3 {[%clk 0:00:43.8]} 29. Qf2
{[%clk 0:01:17.2]} 29... Qh1+ {[%clk 0:00:17.9]} 30. Qg1 {[%clk 0:01:13.9]}
30... Rxe1+ {[%clk 0:00:16.7]} 31. Rxe1 {[%clk 0:01:14.5]} 31... Bxg2+ {[%clk
0:00:17]} 32. Kf2 {[%clk 0:01:13.5]} 32... Qh4+ {[%clk 0:00:04]} 33. Kxg2 {[%clk
0:00:42.5]} 33... Qg3+ {[%clk 0:00:04]} 34. Kf1 {[%clk 0:00:43.1]} 34... Qxf3+
{[%clk 0:00:04.2]} 35. Qf2 {[%clk 0:00:43.7]} 35... Qxd3+ {[%clk 0:00:02.8]} 36.
Kg1 {[%clk 0:00:43.7]} 36... Qg6+ {[%clk 0:00:01.5]} 37. Qg2 {[%clk 0:00:43.1]}
37... Bg3 {[%clk 0:00:01.6]} 38. Re8+ {[%clk 0:00:41.4]} 38... Kh7 {[%clk
0:00:02.1]} 39. Qe4 {[%clk 0:00:42]} 1-0

[Event "Early-Titled-Tuesday-Blitz-January-30-2024"]
[Site "Chess.com"]
[Date "2024.01.30"]
[Round "3"]
[White "Slovineanu"]
[Black "DestroyerJohny"]
[Result "1-0"]
[WhiteElo "2440"]
[BlackElo "2233"]
[TimeControl "180+1"]
[EndTime "8:30:07 PST"]
[Termination "Slovineanu won on time"]

1. d4 {[%clk 0:03:00.9]} 1... d5 {[%clk 0:02:56.4]} 2. Nf3 {[%clk 0:03:00.8]}
2... Nf6 {[%clk 0:02:55.8]} 3. c4 {[%clk 0:03:00.9]} 3... e6 {[%clk 0:02:55.6]}
4. e3 {[%clk 0:03:01.1]} 4... Nbd7 {[%clk 0:02:55.2]} 5. b3 {[%clk 0:03:00.5]}
5... b6 {[%clk 0:02:51.5]} 6. Bd3 {[%clk 0:02:59.4]} 6... Bd6 {[%clk 0:02:47.8]}
7. O-O {[%clk 0:02:58.8]} 7... O-O {[%clk 0:02:47.5]} 8. Nc3 {[%clk 0:02:59]}
8... a6 {[%clk 0:02:47.5]} 9. Bb2 {[%clk 0:02:59.2]} 9... Bb7 {[%clk 0:02:48.1]}
10. Rc1 {[%clk 0:02:59.3]} 10... c5 {[%clk 0:02:34.2]} 11. Qe2 {[%clk
0:02:43.7]} 11... cxd4 {[%clk 0:02:31.9]} 12. exd4 {[%clk 0:02:43.8]} 12... Rc8
{[%clk 0:02:13.8]} 13. Rfd1 {[%clk 0:02:35.8]} 13... dxc4 {[%clk 0:02:10.9]} 14.
bxc4 {[%clk 0:02:32.9]} 14... h6 {[%clk 0:01:57]} 15. Ne5 {[%clk 0:02:30.3]}
15... Qc7 {[%clk 0:01:39.5]} 16. h3 {[%clk 0:02:03.3]} 16... Bxe5 {[%clk
0:01:35.9]} 17. dxe5 {[%clk 0:02:02.8]} 17... Qxe5 {[%clk 0:01:30.8]} 18. Ne4
{[%clk 0:01:56]} 18... Qf4 {[%clk 0:01:21.1]} 19. Nxf6+ {[%clk 0:01:48.8]} 19...
Nxf6 {[%clk 0:01:20.1]} 20. Be5 {[%clk 0:01:45.5]} 20... Qg5 {[%clk 0:01:18.4]}
21. f4 {[%clk 0:01:36.5]} 21... Qh4 {[%clk 0:01:07.1]} 22. Kh2 {[%clk
0:01:27.9]} 22... Nh5 {[%clk 0:00:59.9]} 23. Qe3 {[%clk 0:01:17.9]} 23... Rc5
{[%clk 0:00:23.1]} 24. Be2 {[%clk 0:01:03.8]} 24... Ra5 {[%clk 0:00:17.7]} 25.
g3 {[%clk 0:00:58.1]} 25... Nxg3 {[%clk 0:00:12.8]} 26. Qxg3 {[%clk 0:00:57.8]}
26... Qxg3+ {[%clk 0:00:11.8]} 27. Kxg3 {[%clk 0:00:58.2]} 27... Rxa2 {[%clk
0:00:12.3]} 28. Kf2 {[%clk 0:00:58.2]} 28... Be4 {[%clk 0:00:10.1]} 29. Ke3
{[%clk 0:00:57]} 29... Bf5 {[%clk 0:00:09.8]} 30. Rd6 {[%clk 0:00:53]} 30...
Ra3+ {[%clk 0:00:10]} 31. Rc3 {[%clk 0:00:52.4]} 31... Ra1 {[%clk 0:00:07.5]}
32. Rxb6 {[%clk 0:00:49.8]} 32... f6 {[%clk 0:00:07]} 33. Bd6 {[%clk 0:00:47.6]}
33... Rd8 {[%clk 0:00:06.8]} 34. c5 {[%clk 0:00:47.9]} 34... Rh1 {[%clk
0:00:05.3]} 35. Kd4 {[%clk 0:00:38.5]} 35... Rh2 {[%clk 0:00:03.9]} 36. Bd3
{[%clk 0:00:35.2]} 36... Rd2 {[%clk 0:00:03.8]} 37. Ke3 {[%clk 0:00:34.2]} 1-0

[Event "Early-Titled-Tuesday-Blitz-January-30-2024"]
[Site "Chess.com"]
[Date "2024.01.30"]
[Round "3"]
[White "Logman74"]
[Black "ejalmedina"]
[Result "1-0"]
[WhiteElo "2576"]
[BlackElo "2323"]
[TimeControl "180+1"]
[EndTime "8:30:09 PST"]
[Termination "Logman74 won on time"]

1. e4 {[%clk 0:02:32.2]} 1... c6 {[%clk 0:02:56.8]} 2. d4 {[%clk 0:02:31.5]}
2... d5 {[%clk 0:02:56.4]} 3. Nc3 {[%clk 0:02:32.2]} 3... dxe4 {[%clk
0:02:55.4]} 4. Nxe4 {[%clk 0:02:32.2]} 4... Nf6 {[%clk 0:02:56]} 5. Nxf6+ {[%clk
0:02:32]} 5... exf6 {[%clk 0:02:56.2]} 6. c3 {[%clk 0:02:32.5]} 6... Bd6 {[%clk
0:02:55.8]} 7. Bd3 {[%clk 0:02:32.8]} 7... O-O {[%clk 0:02:55.6]} 8. Qc2 {[%clk
0:02:33.5]} 8... Re8+ {[%clk 0:02:53.1]} 9. Ne2 {[%clk 0:02:33.9]} 9... h5
{[%clk 0:02:53.6]} 10. Be3 {[%clk 0:02:33.2]} 10... Nd7 {[%clk 0:02:48]} 11.
O-O-O {[%clk 0:02:32.8]} 11... b5 {[%clk 0:02:38.1]} 12. Ng3 {[%clk 0:02:25.1]}
12... h4 {[%clk 0:02:34.4]} 13. Nf5 {[%clk 0:02:24.8]} 13... Bf8 {[%clk
0:02:29.6]} 14. Nxh4 {[%clk 0:02:24]} 14... a5 {[%clk 0:02:26.9]} 15. Qe2 {[%clk
0:02:08.9]} 15... g6 {[%clk 0:02:09.4]} 16. g4 {[%clk 0:01:47.2]} 16... Nb6
{[%clk 0:01:49.8]} 17. Ng2 {[%clk 0:01:29.7]} 17... Be6 {[%clk 0:01:29.4]} 18.
Kb1 {[%clk 0:01:25.8]} 18... Bc4 {[%clk 0:01:14]} 19. h4 {[%clk 0:01:22.9]}
19... a4 {[%clk 0:00:33.9]} 20. g5 {[%clk 0:01:11.5]} 20... f5 {[%clk
0:00:31.7]} 21. h5 {[%clk 0:01:06.4]} 21... Qd5 {[%clk 0:00:17.7]} 22. Bxc4
{[%clk 0:00:59.5]} 22... Nxc4 {[%clk 0:00:15]} 23. Nf4 {[%clk 0:00:57]} 23...
Qe4+ {[%clk 0:00:15]} 24. Qd3 {[%clk 0:00:47.5]} 24... Nxe3 {[%clk 0:00:13.1]}
25. Qxe4 {[%clk 0:00:38.1]} 25... Rxe4 {[%clk 0:00:12.1]} 26. fxe3 {[%clk
0:00:38.8]} 26... Rxe3 {[%clk 0:00:09.4]} 27. hxg6 {[%clk 0:00:39.4]} 27... fxg6
{[%clk 0:00:09]} 28. Nxg6 {[%clk 0:00:39.8]} 28... Bg7 {[%clk 0:00:07.9]} 29.
Rde1 {[%clk 0:00:34.8]} 29... Rg3 {[%clk 0:00:04.6]} 30. Ne7+ {[%clk 0:00:32.3]}
30... Kf7 {[%clk 0:00:03.4]} 31. Nxf5 {[%clk 0:00:30.2]} 31... Rxg5 {[%clk
0:00:03.9]} 32. Nd6+ {[%clk 0:00:30.2]} 32... Kg8 {[%clk 0:00:02.2]} 33. Rhg1
{[%clk 0:00:30.5]} 1-0

[Event "Early-Titled-Tuesday-Blitz-January-30-2024"]
[Site "Chess.com"]
[Date "2024.01.30"]
[Round "3"]
[White "ChessSwole"]
[Black "ChessLebaneseSalah"]
[Result "1-0"]
[WhiteElo "2621"]
[BlackElo "2447"]
[TimeControl "180+1"]
[EndTime "8:30:10 PST"]
[Termination "ChessSwole won by resignation"]

1. d4 {[%clk 0:03:00.9]} 1... d5 {[%clk 0:02:59.9]} 2. Nc3 {[%clk 0:02:58.4]}
2... Nf6 {[%clk 0:02:59.7]} 3. Bf4 {[%clk 0:02:58.6]} 3... a6 {[%clk 0:02:55.5]}
4. e3 {[%clk 0:02:58.1]} 4... e6 {[%clk 0:02:54.5]} 5. Nf3 {[%clk 0:02:57.4]}
5... Bb4 {[%clk 0:02:52.8]} 6. Bd3 {[%clk 0:02:56.3]} 6... O-O {[%clk
0:02:52.4]} 7. O-O {[%clk 0:02:55.4]} 7... Nbd7 {[%clk 0:02:50.4]} 8. Ne2 {[%clk
0:02:53.1]} 8... Bd6 {[%clk 0:02:37.7]} 9. c3 {[%clk 0:02:49.4]} 9... Qe7 {[%clk
0:02:33.9]} 10. Ng3 {[%clk 0:02:40.6]} 10... b5 {[%clk 0:02:18.7]} 11. b4 {[%clk
0:02:11.8]} 11... Bb7 {[%clk 0:01:49.9]} 12. a4 {[%clk 0:02:05.4]} 12... a5
{[%clk 0:01:26.4]} 13. bxa5 {[%clk 0:02:02.6]} 13... b4 {[%clk 0:01:24.8]} 14.
Bxd6 {[%clk 0:01:54]} 14... Qxd6 {[%clk 0:01:25.7]} 15. cxb4 {[%clk 0:01:54.5]}
15... e5 {[%clk 0:01:16.4]} 16. Nf5 {[%clk 0:01:52.1]} 16... Qe6 {[%clk
0:01:00]} 17. dxe5 {[%clk 0:01:51.9]} 17... Nxe5 {[%clk 0:00:53.7]} 18. N5d4
{[%clk 0:01:34.9]} 18... Qd6 {[%clk 0:00:46.5]} 19. Nxe5 {[%clk 0:01:34.8]}
19... Qxe5 {[%clk 0:00:46.2]} 20. Rc1 {[%clk 0:01:35.4]} 20... Rfc8 {[%clk
0:00:43]} 21. Nc6 {[%clk 0:01:14.8]} 21... Qd6 {[%clk 0:00:26.3]} 22. b5 {[%clk
0:01:14.5]} 22... Bxc6 {[%clk 0:00:25.9]} 23. Rxc6 {[%clk 0:01:15.4]} 23... Qb4
{[%clk 0:00:26]} 24. a6 {[%clk 0:01:11.7]} 24... Nd7 {[%clk 0:00:21.1]} 25. Bc2
{[%clk 0:00:49.3]} 25... Nb6 {[%clk 0:00:17.1]} 26. Qb1 {[%clk 0:00:39.4]} 26...
Qxb1 {[%clk 0:00:07.6]} 27. Rxb1 {[%clk 0:00:40.3]} 27... Nc4 {[%clk 0:00:05]}
28. Rc5 {[%clk 0:00:33]} 28... Na3 {[%clk 0:00:04.2]} 29. Rd1 {[%clk 0:00:31.8]}
29... Nxc2 {[%clk 0:00:04.2]} 30. Rxc2 {[%clk 0:00:31.6]} 30... c6 {[%clk
0:00:04.6]} 31. Rdc1 {[%clk 0:00:28.5]} 31... c5 {[%clk 0:00:02.5]} 32. Rxc5
{[%clk 0:00:28.5]} 32... Rxc5 {[%clk 0:00:02.3]} 33. Rxc5 {[%clk 0:00:29.4]}
33... Rd8 {[%clk 0:00:02.4]} 34. a7 {[%clk 0:00:28.9]} 34... g5 {[%clk
0:00:02.3]} 35. b6 {[%clk 0:00:27.9]} 35... d4 {[%clk 0:00:02.5]} 36. Kf1 {[%clk
0:00:27.3]} 36... dxe3 {[%clk 0:00:02.5]} 37. fxe3 {[%clk 0:00:27.6]} 37... Kg7
{[%clk 0:00:02.5]} 38. b7 {[%clk 0:00:27.7]} 1-0

[Event "Early-Titled-Tuesday-Blitz-January-30-2024"]
[Site "Chess.com"]
[Date "2024.01.30"]
[Round "3"]
[White "vladislavkovalev"]
[Black "xakevicius91"]
[Result "1-0"]
[WhiteElo "2862"]
[BlackElo "2564"]
[TimeControl "180+1"]
[EndTime "8:30:12 PST"]
[Termination "vladislavkovalev won on time"]

1. e4 {[%clk 0:03:00.9]} 1... c5 {[%clk 0:02:59.6]} 2. Nf3 {[%clk 0:03:01.3]}
2... e6 {[%clk 0:02:59.5]} 3. c3 {[%clk 0:03:01.3]} 3... Nf6 {[%clk 0:02:59]} 4.
e5 {[%clk 0:03:01.5]} 4... Nd5 {[%clk 0:02:59.3]} 5. d4 {[%clk 0:03:02.3]} 5...
cxd4 {[%clk 0:03:00.2]} 6. cxd4 {[%clk 0:03:03.2]} 6... d6 {[%clk 0:03:00.7]} 7.
Bc4 {[%clk 0:03:03.6]} 7... Be7 {[%clk 0:03:01.3]} 8. O-O {[%clk 0:03:04]} 8...
O-O {[%clk 0:03:01.7]} 9. Qe2 {[%clk 0:03:04.5]} 9... b6 {[%clk 0:03:02.2]} 10.
Bxd5 {[%clk 0:03:03.3]} 10... exd5 {[%clk 0:03:01.7]} 11. Rd1 {[%clk 0:03:03]}
11... Na6 {[%clk 0:02:59.5]} 12. Nc3 {[%clk 0:03:02.9]} 12... Nc7 {[%clk
0:02:59.6]} 13. h3 {[%clk 0:03:01.5]} 13... h6 {[%clk 0:02:54.3]} 14. Bf4 {[%clk
0:03:01.8]} 14... Be6 {[%clk 0:02:52.3]} 15. Rac1 {[%clk 0:03:01.3]} 15... Rc8
{[%clk 0:02:46.2]} 16. Nb5 {[%clk 0:02:41.3]} 16... Nxb5 {[%clk 0:02:42.4]} 17.
Qxb5 {[%clk 0:02:42.2]} 17... Rxc1 {[%clk 0:02:26.5]} 18. Rxc1 {[%clk 0:02:41]}
18... Qb8 {[%clk 0:02:27.1]} 19. a3 {[%clk 0:02:05.4]} 19... Rd8 {[%clk
0:02:09.3]} 20. Rc3 {[%clk 0:01:47.4]} 20... Bf8 {[%clk 0:01:25.5]} 21. exd6
{[%clk 0:01:40.1]} 21... Bxd6 {[%clk 0:01:24.8]} 22. Bxd6 {[%clk 0:01:41]} 22...
Qxd6 {[%clk 0:01:23.9]} 23. Ne5 {[%clk 0:01:41.7]} 23... Bd7 {[%clk 0:01:05.9]}
24. Qa6 {[%clk 0:01:25.6]} 24... f6 {[%clk 0:00:59.3]} 25. Nd3 {[%clk
0:01:19.7]} 25... Bf5 {[%clk 0:00:39.8]} 26. Qxa7 {[%clk 0:01:15.2]} 26... Re8
{[%clk 0:00:34.9]} 27. Qa4 {[%clk 0:00:33]} 27... Re2 {[%clk 0:00:24.8]} 28. Qd1
{[%clk 0:00:29.5]} 28... Bxd3 {[%clk 0:00:22.9]} 29. Rxd3 {[%clk 0:00:30.4]}
29... Rxb2 {[%clk 0:00:22.9]} 30. Rg3 {[%clk 0:00:29.2]} 30... Qf4 {[%clk
0:00:17.5]} 31. Qe1 {[%clk 0:00:24.7]} 31... Kh7 {[%clk 0:00:11.6]} 32. Qe7
{[%clk 0:00:20.3]} 32... Qxf2+ {[%clk 0:00:02.8]} 33. Kh2 {[%clk 0:00:20.7]} 1-0